Cogmind - Beta 13 @@@ ROGUE MODE // 2024.04.07 @ 00:25:28 Player: Ghosty Result: Destroyed by G-47 Trooper with Particle Gun Performance ------------- Evolutions (0) 0 Regions Visited (2) 400 Robots Destroyed (2) 10 Value Destroyed (68) 68 Prototype IDs (0) 0 Alien Tech Used (0) 0 Bonus (0) 0 TOTAL SCORE: 478 Bonus ------- None Cogmind --------- Core Integrity 0/250 Matter 29/300 Energy 100/100 System Corruption 0% Temperature Cool (9) Movement Core (1350) Ox26 Location -10/Mines Parts ------- > --- POWER (1) -------- (None) > --- PROPULSION (2) --- (None) > --- UTILITY (2) ------ Huge Storage Unit > --- WEAPON (2) ------- Light Assault Rifle > --- INVENTORY (25) --- Aluminum Leg Aluminum Leg Wheel Compact Wheel Small Storage Unit Medium Laser Light Assault Rifle Grenade Launcher Mining Laser Mining Laser Peak State ------------ > --- POWER ------------ Light Ion Engine > --- PROPULSION ------- Aluminum Leg Aluminum Leg > --- UTILITY ---------- Small Storage Unit Huge Storage Unit > --- WEAPON ----------- Medium Laser Light Assault Rifle > --- INVENTORY -------- Light Treads Light Treads Wheel Compact Wheel Light Assault Rifle Grenade Launcher Mining Laser Mining Laser [Rating: 7] Favorites ----------- Power Light Ion Engine Engine Light Ion Engine Propulsion Light Treads Treads Light Treads Leg Aluminum Leg Utility Huge Storage Unit Storage Huge Storage Unit Weapon Light Assault Rifle Energy Gun Medium Laser Ballistic Gun Light Assault Rifle Ballistic Cannon Light Cannon Build | -11 -10 -10 ------- Run | Yrd Mat Min Slots Evolved . | . . . Power . | . . . Propulsion . | . . . Utility . | . . . Weapon . | . . . Parts Attached 14 | 8 1 5 Power 1 | 1 . . Engine 1 | 1 . . Core . | . . . Reactor . | . . . Propulsion 6 | 4 . 2 Treads 4 | 2 . 2 Leg 2 | 2 . . Wheel . | . . . Hover . | . . . Flight . | . . . Utility 2 | 1 . 1 Device . | . . . Storage 2 | 1 . 1 Processor . | . . . Hackware . | . . . Protection . | . . . Artifact . | . . . Weapon 5 | 2 1 2 Energy Gun 1 | 1 . . Energy Cannon . | . . . Ballistic Gun 3 | 1 1 1 Ballistic Cannon 1 | . . 1 Launcher . | . . . Special Weapon . | . . . Impact Weapon . | . . . Slashing Weapon . | . . . Piercing Weapon . | . . . Special Melee Weapon . | . . . Unidentified Prototypes . | . . . Parts Lost 4 | . . 4 Power 1 | . . 1 Propulsion 2 | . . 2 Utility . | . . . Weapon 1 | . . 1 Highest Loss Streak 3 | . . 3 To Critical Strikes . | . . . Average Slot Usage (%) 76 | . 85 75 Engine 10 | . 14 10 Treads 20 | . . 22 Leg 3 | . 28 1 Storage 14 | . 14 14 Energy Gun 11 | . 14 11 Ballistic Gun 14 | . 14 14 Naked Turns . | . . . Heaviest Build 86 | 10 11 86 Greatest Support 40 | 40 20 40 Greatest Overweight (x) 27 | . . 27 Average Overweight (x) 1 | . . 2 Largest Inventory Capacity 25 | 8 8 25 Average Capacity 21 | 7 8 24 Most Carried 11 | 8 8 11 Average Carried 9 | 5 6 9 Final Capacity 25 | 8 8 25 Final Carried 10 | 7 8 10 Class Distribution -------------------- 100% | Mutant Dominant Class ---------------- Mutant | -10/Materials Mutant | -10/Mines Resources | -11 -10 -10 ----------- Run | Yrd Mat Min Matter Collected 171 | 158 . 13 Remotely . | . . . Salvage Created 78 | . . 78 Parts 6 | . . 6 Haulers Intercepted . | . . . Recyclers Shooed . | . . . Parts Field Recycled . | . . . Retrieved Matter . | . . . Parts Self-Destructed . | . . . Prevented . | . . . Kills | -11 -10 -10 ------- Run | Yrd Mat Min Combat Hostiles Destroyed 2 | . . 2 Guns 1 | . . 1 Cannons 1 | . . 1 Classes Destroyed 1 | . . 1 Grunt 2 | . . 2 Best Kill Streak 1 | . . 1 Combat Bots Only 1 | . . 1 Max Kills in Single Turn 1 | . . 1 Gunslinging . | . . . Exploded . | . . . Melee . | . . . Uniques/NPCs Destroyed . | . . . Combat | -11 -10 -10 -------- Run | Yrd Mat Min Hostile Shots Fired 81 | . . 81 Missed 13 | . . 13 Damage Taken 914 | . . 914 Core 261 | . . 261 Absorbed by Shields . | . . . Core Remaining (%) 100 | 100 . . Volleys Fired 43 | . . 43 Largest 2 | . . 2 Hottest 70 | . . 70 Shots Fired 85 | . . 85 Gun 76 | . . 76 Cannon 9 | . . 9 Launcher . | . . . Special . | . . . Kinetic 52 | . . 52 Thermal 33 | . . 33 Explosive . | . . . Electromagnetic . | . . . Robot Hit Streak 6 | . . 6 Robot Miss Streak 4 | . . 4 Penetration Max . | . . . Secondary Targets . | . . . Shots Hit Robots 19 | . . 19 Core Hits 6 | . . 6 Critical Kills . | . . . Critical Parts Destroyed 1 | . . 1 Critical Strikes 1 | . . 1 Destroy 1 | . . 1 Melee Attacks . | . . . Impact . | . . . Slashing . | . . . Piercing . | . . . Sneak Attacks . | . . . Combat Hostiles . | . . . Follow-up Attacks . | . . . Damage Inflicted 186 | . . 186 Guns 167 | . . 167 Cannons 19 | . . 19 Explosions . | . . . Melee . | . . . Ramming . | . . . Kinetic 99 | . . 99 Thermal 87 | . . 87 Explosive . | . . . Electromagnetic . | . . . Impact . | . . . Slashing . | . . . Piercing . | . . . Highest Corruption . | . . . Average Corruption . | . . . Corruption Purged . | . . . Corruption Blocked . | . . . Overload Shots . | . . . Overflow Damage . | . . . Projectiles . | . . . Explosions . | . . . Melee . | . . . Knockbacks . | . . . Impact . | . . . Kinetic . | . . . Secondary . | . . . Self-Inflicted Damage . | . . . Shots . | . . . Rammed . | . . . Targets Rammed . | . . . Kicked . | . . . Crushed . | . . . Highest Temperature 479 | . . 479 Average Temperature 243 | . . 243 Received Heat Transfer 531 | . . 531 Effects 8 | . . 8 Energy Bleed 1 | . . 1 Interference 2 | . . 2 Matter Decay 2 | . . 2 Short Circuit 1 | . . 1 Damage (minor) 2 | . . 2 Siege Activations . | . . . Robots Corrupted . | . . . Combat Hostiles . | . . . Parts Fried . | . . . Impact Corruptions . | . . . Robots Melted . | . . . Combat Hostiles . | . . . Parts Melted . | . . . Heat Transferred 259 | . . 259 Parts Sabotaged . | . . . Parts Stolen . | . . . Parts Stripped . | . . . Power Chain Reactions . | . . . Alert | -11 -10 -10 ------- Run | Yrd Mat Min Peak Influence 26 | . . 26 Initial . | . . . Average 3 | . . 4 Maximum Alert Level . | . . . Low Security (%) 100 | 100 100 100 Level 1 . | . . . Level 2 . | . . . Level 3 . | . . . Level 4 . | . . . Level 5 . | . . . High Security . | . . . Max Security . | . . . Squads Dispatched 1 | . 1 . Investigation 1 | . 1 . Extermination . | . . . Reinforcement . | . . . Assault . | . . . Garrison . | . . . Intercept . | . . . Searches Triggered . | . . . Construction Impeded . | . . . Haulers Reinforced . | . . . Active Scanning Responses . | . . . Cargo Convoy Interrupts . | . . . Stealth | -11 -10 -10 --------- Run | Yrd Mat Min Distress Signals . | . . . Communications Jammed . | . . . Distress Signals . | . . . Times Spotted 7 | . . 7 Peak Tracking Total 3 | . . 3 Tactical Retreats 3 | . . 3 Traps | -11 -10 -10 ------- Run | Yrd Mat Min Traps Triggered 1 | . 1 . Indirectly . | . . . Trap Hack Attempts . | . . . Triggered . | . . . Disarmed . | . . . Reprogrammed . | . . . Reused . | . . . Traps Extracted . | . . . Installed . | . . . Triggered . | . . . Machines | -11 -10 -10 ---------- Run | Yrd Mat Min Machines Disabled . | . . . Max in Single Turn . | . . . Machines Repaired . | . . . Machines Dismantled . | . . . Machines Sabotaged . | . . . Overloaded Fab Kills . | . . . Hacking | -11 -10 -10 --------- Run | Yrd Mat Min Machines Accessed . | . . . Terminals . | . . . Fabricators . | . . . Repair Stations . | . . . Recycling Units . | . . . Scanalyzers . | . . . Garrison Access . | . . . Total Hacks . | . . . Successful . | . . . Failed . | . . . Catastrophic . | . . . Database Lockouts . | . . . Manual . | . . . Terminals . | . . . Fabricators . | . . . Repair Stations . | . . . Recycling Units . | . . . Scanalyzers . | . . . Garrison Access . | . . . Terminal Hacks . | . . . Fabricator Hacks . | . . . Repair Station Hacks . | . . . Recycling Unit Hacks . | . . . Scanalyzer . | . . . Garrison Access Hacks . | . . . Unauthorized Hacks . | . . . Terminals . | . . . Fabricators . | . . . Repair Stations . | . . . Recycling Units . | . . . Scanalyzers . | . . . Garrison Access . | . . . Data Cores Recovered . | . . . Used . | . . . Hacking Detections . | . . . Full Trace Events . | . . . Feedback Events . | . . . Feedback Blocked . | . . . Robot Schematics Acquired . | . . . Robots Built . | . . . Authchips . | . . . Time . | . . . Total Robot Build Rating . | . . . Part Schematics Acquired . | . . . Parts Built . | . . . Authchips . | . . . Time . | . . . Total Part Build Rating . | . . . Parts Repaired . | . . . Time . | . . . Parts Recycled . | . . . Recycled Matter . | . . . Retrieved Matter . | . . . Retrieved Components . | . . . Parts Scanalyzed . | . . . Part Schematics Acquired . | . . . Parts Damaged . | . . . Bothacking | -11 -10 -10 ------------ Run | Yrd Mat Min Used RIF Installer . | . . . Robots Hacked . | . . . Non-combat . | . . . Combat . | . . . Robot Hacks Applied . | . . . Relay Couplers Released . | . . . Fabnet Peak Effective % . | . . . Robots Rewired . | . . . Allies Hacked . | . . . Hacks Repelled . | . . . Allies | -11 -10 -10 -------- Run | Yrd Mat Min Total Allies 2 | . . 2 Largest Group 2 | . . 2 Highest-Rated Group 41 | . . 41 Highest-Rated Ally 31 | . . 31 Total Orders . | . . . Ally Attacks 10 | . . 10 Total Damage 126 | . . 126 Kills . | . . . Allies Corrupted . | . . . Allies Melted . | . . . Intel | -11 -10 -10 ------- Run | Yrd Mat Min Robot Analysis Total . | . . . Derelict Logs Recovered 1 | . . 1 Drone Launches . | . . . Drone Recoveries . | . . . Exploration | -11 -10 -10 ------------- Run | Yrd Mat Min Turns Passed 940 | 112 70 758 Spaces Moved 310 | 67 55 188 Core 12 | 4 . 8 Treads 194 | 41 . 153 Legs 104 | 22 55 27 Wheels . | . . . Hover . | . . . Flight . | . . . Fastest Speed 50 | 50 120 120 Average Speed 257 | 140 120 339 Slowest Speed 1400 | 160 120 1400 Overloaded Moves . | . . . Propulsion Burnouts . | . . . Robots Hopped . | . . . Cave-ins Triggered . | . . . Exploration Rate (%) 20 | 5 16 39 Regions Visited 2 Branch Regions 1 Pre-discovered Areas . | . . . Known Exits Taken . | . . . Unknown Exits Taken 2 | 1 1 . Scrap Searched 1 | . . 1 Spaces Dug . | . . . Terrain Destroyed . | . . . Melee . | . . . Projectile . | . . . AOE . | . . . Terrain Rammed . | . . . Walls Destroyed . | . . . Machines Disabled . | . . . Actions | -11 -10 -10 --------- Run | Yrd Mat Min Total 387 | 84 59 244 Wait . | . . . Move 308 | 66 54 188 Hop . | . . . Pick Up 11 | 7 3 1 Fast Attach 8 | 5 . 3 Attach 6 | 3 1 2 Detach 8 | 3 . 5 Swap . | . . . Drop 3 | . 1 2 Fire 43 | . . 43 Melee . | . . . Ram . | . . . Kick . | . . . Crush . | . . . Escape Stasis . | . . . Rewire . | . . . Trap . | . . . Miscellaneous . | . . . Route ------- -11/Scrapyard -10/Materials -10/Mines History --------- Turn | Location | Event 11 | -11/Scrapyard | Discovered new exit (range 15) 113 | -11/Scrapyard | Entered Materials 157 | -10/Materials | Discovered new exit (range 8) 183 | -10/Materials | Entered Mines 307 | -10/Mines | Build established: Mutant 311 | -10/Mines | Learned 4 Materials zone layouts 803 | -10/Mines | Core integrity fell below 50% 883 | -10/Mines | Lost 3 parts (2n1w) 936 | -10/Mines | Core integrity fell below 20% 941 | -10/Mines | Destroyed by G-47 Trooper with Particle Gun Last Messages --------------- 00789_ Overheating: Matter decay (-11). 00792_ Lgt. Treads broken. 00792_ Overheating: Short circuit. 00808_ R-06 Scavenger collects Aluminum Leg. 00809_ Overheating: System interference. 00809_ Med. Laser temporarily disabled. 00812_ R-06 Scavenger collects Imp. Heat Sink. 00813_ Overheating: System interference. 00813_ Lgt. Assault Rifle temporarily disabled. 00818_ R-06 Scavenger collects Carbon-fiber Leg. 00822_ Lgt. Treads destroyed. 00834_ Broken Lgt. Treads destroyed. 00841_ G-34 Mercenary destroyed. 00850_ K-01 Serf collects debris. 00852_ Lgt. Cannon destroyed. 00854_ K-01 Serf collects debris. 00911_ R-06 Scavenger collects Sml. Laser. 00916_ R-06 Scavenger collects Aluminum Leg. 00919_ R-06 Scavenger collects Ion Engine. 00929_ R-06 Scavenger collects Sml. Laser. Map ----- +----------------------------------------------------+ | ??????????????????????????????????????????????? | | ??????????????????????????????????????????????? | | ?????????????????????#????????????????????????? | | ????????????????????? ????????????????????????? | | ????????????????????? ????????????????????????? | | ????????????????????? ????????????????????????? | | ????????????????????? ????????????????????????? | | ????????????????????? ????????????????????????? | | ????????????????????? ????????????????????????? | | ????????????????????# #???????????????????????? | | ????????????????????# #???????????????????????? | | ????????????????????# #???????????????????????? | | ????????????????????# #???????????????????????? | | ???????????????????? #???????????????????????? | | ????????????????????# #??????????????????????#? | | ????????????????????# #????####?????????????? ? | | ????????????????????# ###### ##????????????? ? | | ????????????????????# % ###??????????# ? | | ??????????????????###%##### #### #?????# # | | ?????????????????## ##??# #?????# # | | ?????????????????# *% #??## ### # | | ?????????????????# #???## ##????##### # | | ?????????????????# #????## ##???????# | | ?????????????????## #?????## #???????# # | | ??????????????????# #??????# #??????## | | ??????????????????# @#??????# #?????## | | ??????????????????##g % #?????# #??#### | | ?????????????????? r %*#?????## #??# | | ???????????????? #??????## ##### ## | | ???????????????###### ##???????# ## | | ????????????????????## #????????# ######### | | ?????????????????????# #???????## #???????# ## | | ?????????????????????# #??????? #???????# ## | | ?????????????????????# ?????? ###?????# ## | | ??????????????????????##?????### ##????# ## | | ???????????????????????????????## ###### | | ????????????????????????????????# | | ????????????????????????????????# | | ????????????????????????????????# ## #?# | | ????????????????????????????????# ## #??# | | ????????????????????????????????# ## #???# | | ???????????????????????????????## # ##### | | ???????????????????????????????# | | ??????????????????????????????## = | | ????????????????????????????### ######## # | | ???????????????????????????## ##??????# # | | ??????????????????????????## ##???????# # | | ??????????????????????????# ##???????# # | | ??????????????????????????# ##??????# # | | ??????????????????????????## #??????# # | +----------------------------------------------------+ Best States ------------- Heat Dissipation 25 Energy Generation 10 Energy Capacity 125 Matter Stores 171 Matter Capacity 300 Sight Range 16 Terrain Scan Density 10 Evasion (%) 55 Recoil Reduction 2 Item Schematics ----------------- None Robot Schematics ------------------ None Fabricated ------------ Nothing Alien Tech Used ----------------- None Achievements -------------- None Challenges ------------ None Game ------ Seed HybridTerrainModule Manual? 0 Play Time 00:10:45 Cumulative 3.5 hours Start 2024.04.07 @ 00:17:20 End 2024.04.07 @ 00:25:28 Sessions 1 Manual Loads 0 Difficulty Rogue Special Mode None Game No. 9 Rogue 8 Adventurer 0 Explorer 1 Win Type - Total 0 Types 0/0/0/0/0/0/0/0/0 Lore% 1 Gallery% 8 Achievement% 7 Wizard Run 0 Options --------- Layout 0 ASCII 0 Keyboard 1 Movement Arrows Keybinds 0 Fullscreen 2 Font 24/Crisp Map View 76x50 Zoom Use 0% Tactical HUD 1 Map Filters NONE Filters NONE Steam 1 RUN: 31713309-4fde-4825-9c3a-18a365027cd2